Cogmind - Beta 17.1 @@@ ROGUE MODE // 2026.09.05 @ 01:08:05 Player: Kite Result: Self-destructed Performance ------------- Evolutions (2) 1000 Regions Visited (3) 600 Robots Destroyed (75) 375 Value Destroyed (1746) 1746 Prototype IDs (0) 0 Alien Tech Used (0) 0 Bonus (0) 0 TOTAL SCORE: 3721 Bonus ------- None Cogmind --------- Core Integrity 479/550 Matter 300/300 Energy 100/100 System Corruption 2% Temperature Cool (0) Movement Rolling (125) Ox3 Location -8/Materials Parts ------- > --- POWER (1) -------- (None) > --- PROPULSION (4) --- Aluminum Leg Wheel > --- UTILITY (3) ------ Large Storage Unit Hardened Medium Armor Plating Shield Generator > --- WEAPON (3) ------- Katana Katana > --- INVENTORY (15) --- High-capacity Storage Unit High-capacity Matter Pod (200) Compact Matter Pod (70) Hardened Medium Armor Plating High-powered Tractor Beam Rocket Launcher Improved Grenade Launcher Peak State ------------ > --- POWER ------------ (None) > --- PROPULSION ------- Aluminum Leg Wheel > --- UTILITY ---------- Large Storage Unit Hardened Medium Armor Plating Shield Generator > --- WEAPON ----------- Katana Katana > --- INVENTORY -------- High-capacity Storage Unit High-capacity Matter Pod Compact Matter Pod Hardened Medium Armor Plating High-powered Tractor Beam Rocket Launcher Improved Grenade Launcher [Rating: 15] Favorites ----------- Power Ion Engine Engine Ion Engine Propulsion Wheel Treads Light Treads Leg Aluminum Leg Wheel Wheel Utility Large Storage Unit Device Heat Sink Storage Large Storage Unit Processor Signal Interpreter Hackware Hacking Suite Protection Light Armor Plating Weapon Mining Claw Energy Gun Medium Laser Special Weapon Welding Torch Impact Weapon Hammer Slashing Weapon Mining Claw Build | -11 -10 -9 -8 ------- Run | Yrd Mat Mat Mat Slots Evolved 4 | . . 2 2 Power . | . . . . Propulsion 2 | . . 1 1 Utility 1 | . . . 1 Weapon 1 | . . 1 . Parts Attached 47 | 6 17 17 7 Power 5 | 1 1 3 . Engine 5 | 1 1 3 . Core . | . . . . Reactor . | . . . . Propulsion 15 | 2 4 7 2 Treads 6 | 2 1 3 . Leg 2 | . . 1 1 Wheel 7 | . 3 3 1 Hover . | . . . . Flight . | . . . . Utility 17 | 1 7 6 3 Device 3 | . 2 . 1 Storage 6 | 1 3 1 1 Processor 1 | . . 1 . Hackware 1 | . . 1 . Protection 6 | . 2 3 1 Artifact . | . . . . Weapon 10 | 2 5 1 2 Energy Gun 4 | 2 2 . . Energy Cannon . | . . . . Ballistic Gun . | . . . . Ballistic Cannon . | . . . . Launcher . | . . . . Special Weapon 1 | . . 1 . Impact Weapon 1 | . 1 . . Slashing Weapon 4 | . 2 . 2 Piercing Weapon . | . . . . Special Melee Weapon . | . . . . Unidentified Prototypes . | . . . . Corrupted Parts 2 | . . 2 . System Corruption 22 | . . 22 . Parts Lost 26 | . 7 19 . Power 3 | . . 3 . Propulsion 12 | . 3 9 . Utility 6 | . 2 4 . Weapon 5 | . 2 3 . Highest Loss Streak 7 | . 3 7 . To Critical Strikes . | . . . . Average Backups 10 | 1 11 11 6 Power 1 | . 1 1 . Propulsion 1 | . 1 1 . Utility 5 | . 4 6 5 Weapon 2 | . 3 . . Tool/Special . | . . . . Unused Backups 24 | . 11 6 7 Power 1 | . 1 . . Propulsion 1 | . 1 . . Utility 11 | . 1 5 5 Weapon 11 | . 8 1 2 Tool/Special . | . . . . Average Slot Usage (%) 87 | . 96 82 44 Engine 11 | . 14 10 . Treads 11 | . 14 9 . Leg 1 | . . 3 . Wheel 13 | . 12 15 7 Device 4 | . 6 . 4 Storage 12 | . 14 10 7 Protection 7 | . 7 6 8 Energy Gun 7 | . 12 . . Impact Weapon 6 | . 6 10 . Slashing Weapon 9 | . 6 11 17 Peak Build Rating 15 | 6 10 12 15 Average Rating 8 | 4 7 9 12 On Entrance 3 | . 6 8 . Avg Prop Armor Cover (%) 10 | . 15 10 7 Naked Turns 38 | . . 30 8 Heaviest Build 52 | 11 52 34 34 Greatest Support 60 | 40 40 60 10 Greatest Overweight (x) 4 | . 4 3 3 Average Overweight (x) . | . 1 . 2 Largest Inventory Capacity 20 | 8 20 15 15 Average Capacity 15 | 7 17 14 12 Most Carried 20 | 2 20 15 7 Average Carried 10 | 1 11 11 6 Final Capacity 15 | 8 15 5 15 Final Carried 11 | 2 11 5 7 Class Distribution -------------------- 92% | Mutant 7% | Scavenger-Mutant Dominant Class ---------------- Mutant | -10/Materials Mutant | -9/Materials Mutant | -8/Materials Resources | -11 -10 -9 -8 ----------- Run | Yrd Mat Mat Mat Matter Collected 972 | 207 418 207 140 Remotely . | . . . . Salvage Created 2661 | . 1286 1137 238 Parts 96 | . 46 35 15 Haulers Intercepted 3 | . 2 1 . Recyclers Shooed 6 | . 2 3 1 Parts Field Recycled . | . . . . Retrieved Matter . | . . . . Parts Self-Destructed . | . . . . Prevented . | . . . . Parts Restored . | . . . . Kills | -11 -10 -9 -8 ------- Run | Yrd Mat Mat Mat Combat Hostiles Destroyed 48 | . 21 23 4 Melee 18 | . 4 10 4 Guns 12 | . 12 . . AOE 4 | . . 4 . Classes Destroyed 11 | . 8 3 . Worker 2 | . . 1 1 Builder 6 | . 4 2 . Tunneler 2 | . 1 1 . Hauler 3 | . 2 1 . Recycler 8 | . 4 3 1 Mechanic 1 | . . 1 . Operator 3 | . 2 1 . Watcher 2 | . 2 . . Swarmer 11 | . 6 5 . Grunt 33 | . 15 15 3 Sentry 4 | . . 3 1 Best Kill Streak 6 | . 4 6 4 Combat Bots Only 4 | . 3 4 3 Max Kills in Single Turn 5 | . 1 5 1 Gunslinging . | . . . . Exploded 4 | . . 4 . Melee 1 | . 1 1 1 Uniques/NPCs Destroyed . | . . . . Combat | -11 -10 -9 -8 -------- Run | Yrd Mat Mat Mat Hostile Shots Fired 319 | . 97 203 19 Missed 75 | . 25 43 7 Hits 244 | . 72 160 12 Projectile 244 | . 72 160 12 Critical Strikes 7 | . 2 4 1 Damage Taken 2923 | . 897 1901 125 Core 580 | . 122 387 71 Absorbed by Shields 29 | . . . 29 Regen/Repaired (Parts) 73 | . . 73 . Core Remaining (%) 51 | 100 51 3 . Volleys Fired 64 | . 64 . . Largest 2 | . 2 . . Hottest 115 | . 115 . . Shots Fired 109 | . 109 . . Gun 109 | . 109 . . Cannon . | . . . . Launcher . | . . . . Special . | . . . . Kinetic . | . . . . Thermal 109 | . 109 . . Explosive . | . . . . Electromagnetic . | . . . . Robot Hit Streak 8 | . 8 . . Robot Miss Streak 5 | . 5 . . Penetration Max . | . . . . Secondary Targets 1 | . 1 . . Max Gunslinging Chain 1 | . 1 . . Shots Hit Robots 194 | . 97 79 18 Core Hits 55 | . 35 14 6 Critical Kills 1 | . . 1 . Critical Parts Destroyed 21 | . 7 14 . Critical Strikes 29 | . 13 15 1 Burn 6 | . 6 . . Smash 22 | . 7 15 . Sever 1 | . . . 1 Melee Attacks 176 | . 39 115 22 Impact 112 | . 31 81 . Slashing 64 | . 8 34 22 Piercing . | . . . . Sneak Attacks 25 | . 9 12 4 Combat Hostiles . | . . . . Follow-up Attacks 20 | . 3 14 3 Damage Inflicted 5242 | . 1883 2681 678 Guns 879 | . 879 . . Cannons . | . . . . Explosions 496 | . . 496 . Melee 3848 | . 985 2185 678 Ramming 19 | . 19 . . Kinetic . | . . . . Thermal 1375 | . 879 496 . Explosive . | . . . . Electromagnetic . | . . . . Impact 2214 | . 809 1405 . Slashing 1634 | . 176 780 678 Piercing . | . . . . Highest Corruption 22 | . . 22 2 Average Corruption 14 | . . 21 2 Corruption Purged . | . . . . Corruption Blocked . | . . . . Effects 14 | . . 12 2 Message Errors 3 | . . 2 1 Matter Fused 3 | . . 3 . Heat Flow Errors 2 | . . 2 . Parts Fused 1 | . . 1 . Data Loss (minor) 3 | . . 3 . Data Loss (major) 2 | . . 1 1 Overload Shots . | . . . . Overflow Damage 1189 | . 438 637 114 Projectiles . | . . . . Explosions 162 | . 42 120 . Melee 1027 | . 396 517 114 Knockbacks 14 | . 5 9 . Impact 13 | . 4 9 . Kinetic . | . . . . Secondary 1 | . 1 . . Self-Inflicted Damage 168 | . 55 113 . Shots 2 | . 1 1 . Rammed 4 | . 4 . . Targets Rammed 4 | . 4 . . Kicked . | . . . . Crushed . | . . . . Highest Temperature 276 | . 276 191 . Average Temperature 71 | . 69 81 . Received Heat Transfer 1207 | . 339 813 55 Effects 1 | . 1 . . Interference 1 | . 1 . . Siege Activations . | . . . . Martial Activations . | . . . . Shielding Activations . | . . . . Robots Disrupted . | . . . . Combat Hostiles . | . . . . Robots Corrupted 20 | . 10 10 . Combat Hostiles 13 | . 4 9 . Parts Fried 40 | . 23 17 . Impact Corruptions 40 | . 19 21 . Robots Melted 1 | . 1 . . Combat Hostiles 1 | . 1 . . Parts Melted 7 | . 6 1 . Heat Transferred 3311 | . 2961 350 . Parts Sabotaged . | . . . . Parts Stolen . | . . . . Parts Stripped . | . . . . Power Chain Reactions . | . . . . Alert | -11 -10 -9 -8 ------- Run | Yrd Mat Mat Mat Maximum Alert Level 1 | . 1 1 . Low Security (%) 89 | 100 97 67 100 Level 1 10 | . 2 32 . Level 2 . | . . . . Level 3 . | . . . . Level 4 . | . . . . Level 5 . | . . . . High Security . | . . . . Max Security . | . . . . Peak Influence 297 | . 252 297 112 Initial 112 | . . 104 112 Average 101 | . 76 168 71 Influence Increases 1820 | . 812 883 125 Destroy 0b10 Robot/C 960 | . 420 460 80 Destroy 0b10 Robot/NC 135 | . 75 50 10 Destroy Leader 210 | . 98 92 20 Successful Hack 28 | . 28 . . Select Force Hacks 60 | . 60 . . Disable Machine 75 | . 30 45 . Destroy Structure 52 | . 26 26 . Partial Spotted 30 | . 15 15 . Lose Combat Pursuer 270 | . 60 195 15 Influence Decreases 1713 | . 563 865 285 Entered New Map 300 | . . 145 155 Time Decay 1003 | . 493 380 130 Lost Part 260 | . 70 190 . Purge Threat 150 | . . 150 . Squads Dispatched 11 | . 5 5 1 Investigation 7 | . 4 3 . Extermination . | . . . . Reinforcement 4 | . 1 2 1 Assault . | . . . . Garrison . | . . . . Intercept . | . . . . Searches Triggered . | . . . . Construction Impeded . | . . . . Haulers Reinforced . | . . . . Active Scanning Responses . | . . . . Cargo Convoy Interrupts . | . . . . Stealth | -11 -10 -9 -8 --------- Run | Yrd Mat Mat Mat Distress Signals 8 | . 2 4 2 Communications Jammed . | . . . . Distress Signals . | . . . . Times Spotted 88 | . 31 48 9 Peak Tracking Total 10 | . 4 10 4 Tactical Retreats 9 | . 2 6 1 Traps | -11 -10 -9 -8 ------- Run | Yrd Mat Mat Mat Traps Triggered 5 | . 3 1 1 Indirectly . | . . . . Trap Hack Attempts . | . . . . Triggered . | . . . . Disarmed . | . . . . Reprogrammed . | . . . . Reused . | . . . . Traps Extracted . | . . . . Installed . | . . . . Triggered . | . . . . Machines | -11 -10 -9 -8 ---------- Run | Yrd Mat Mat Mat Machines Disabled 5 | . 2 3 . Max in Single Turn 2 | . 1 2 . Machines Repaired . | . . . . Machines Dismantled . | . . . . Machines Sabotaged . | . . . . Overloaded Fab Kills . | . . . . Hacking | -11 -10 -9 -8 --------- Run | Yrd Mat Mat Mat Machines Accessed 10 | . 7 3 . Terminals 6 | . 5 1 . Fabricators . | . . . . Repair Stations 2 | . . 2 . Recycling Units 2 | . 2 . . Scanalyzers . | . . . . Garrison Access . | . . . . Total Hacks 27 | . 18 9 . Successful 9 | . 6 3 . Failed 18 | . 12 6 . Catastrophic 3 | . 3 . . Database Lockouts . | . . . . Manual 19 | . 17 2 . Terminals 18 | . 16 2 . Fabricators . | . . . . Repair Stations 7 | . . 7 . Recycling Units 2 | . 2 . . Scanalyzers . | . . . . Garrison Access . | . . . . Terminal Hacks 5 | . 4 1 . Part Schematic 2 | . 2 . . Unreport Threat 1 | . . 1 . Hauler Manifests 1 | . 1 . . Registered Components 1 | . 1 . . Fabricator Hacks . | . . . . Repair Station Hacks 2 | . . 2 . Scan Component 1 | . . 1 . Repair 1 | . . 1 . Recycling Unit Hacks . | . . . . Scanalyzer . | . . . . Garrison Access Hacks . | . . . . Unauthorized Hacks 2 | . 2 . . Terminals . | . . . . Fabricators . | . . . . Repair Stations . | . . . . Recycling Units 2 | . 2 . . Tunnel 2 | . 2 . . Scanalyzers . | . . . . Garrison Access . | . . . . Data Cores Recovered . | . . . . Used . | . . . . Hacking Detections 8 | . 5 3 . Full Trace Events 4 | . 2 2 . Feedback Events . | . . . . Feedback Blocked . | . . . . Robot Schematics Acquired . | . . . . Robots Built . | . . . . Authchips . | . . . . Time . | . . . . Total Robot Build Rating . | . . . . Part Schematics Acquired 2 | . 2 . . Parts Built . | . . . . Authchips . | . . . . Time . | . . . . Total Part Build Rating . | . . . . Part Studies Acquired . | . . . . Parts Repaired 1 | . . 1 . Time 26 | . . 26 . Parts Recycled . | . . . . Recycled Matter . | . . . . Retrieved Matter . | . . . . Retrieved Components . | . . . . Parts Scanalyzed . | . . . . Part Schematics Acquired . | . . . . Parts Damaged . | . . . . Bothacking | -11 -10 -9 -8 ------------ Run | Yrd Mat Mat Mat Used RIF Installer . | . . . . Robots Hacked . | . . . . Non-combat . | . . . . Combat . | . . . . Robot Hacks Applied . | . . . . Relay Couplers Released . | . . . . Fabnet Peak Effective % . | . . . . Robots Rewired . | . . . . Allies Hacked . | . . . . Hacks Repelled . | . . . . Allies | -11 -10 -9 -8 -------- Run | Yrd Mat Mat Mat Total Allies . | . . . . Largest Group . | . . . . Highest-Rated Group . | . . . . Highest-Rated Ally . | . . . . Total Orders . | . . . . Ally Attacks . | . . . . Total Damage . | . . . . Kills . | . . . . Allies Corrupted . | . . . . Allies Melted . | . . . . Intel | -11 -10 -9 -8 ------- Run | Yrd Mat Mat Mat Active Infowar (turns) . | . . . . Robot Analysis Total . | . . . . Derelict Logs Recovered . | . . . . Drone Launches . | . . . . Drone Recoveries . | . . . . Exploration | -11 -10 -9 -8 ------------- Run | Yrd Mat Mat Mat Turns Passed 3064 | 83 1820 897 264 Spaces Moved 1490 | 48 877 448 117 Core 86 | 3 . 52 31 Treads 433 | 45 319 69 . Legs 8 | . . 8 . Wheels 963 | . 558 319 86 Hover . | . . . . Flight . | . . . . Fastest Speed 50 | 50 95 50 50 Average Speed 130 | 153 145 101 122 Slowest Speed 320 | 160 320 260 200 Overloaded Moves . | . . . . Propulsion Burnouts . | . . . . Robots Hopped . | . . . . Potential Cave-ins . | . . . . Cave-ins Triggered . | . . . . Exploration Rate (%) 37 | 3 93 42 12 Regions Visited 3 Branch Regions . Pre-discovered Areas 2 | . 2 . . Known Exits Taken . | . . . . Unknown Exits Taken 3 | 1 1 1 . Scrap Searched . | . . . . Spaces Dug 4 | . 1 3 . Terrain Destroyed 56 | . 30 26 . Melee 4 | . 1 3 . Projectile . | . . . . AOE 52 | . 29 23 . Terrain Rammed . | . . . . Walls Destroyed . | . . . . Machines Disabled . | . . . . Actions | -11 -10 -9 -8 --------- Run | Yrd Mat Mat Mat Total 2215 | 55 1242 708 210 Wait 382 | . 201 118 63 Move 1487 | 47 876 447 117 Hop . | . . . . Pick Up 46 | 2 25 14 5 Fast Attach 22 | 6 6 5 5 Attach 22 | . 4 16 2 Detach 2 | . . 2 . Swap 14 | . 9 5 . Drop 23 | . 17 5 1 Fire 64 | . 64 . . Melee 149 | . 36 96 17 Ram . | . . . . Kick . | . . . . Crush 4 | . 4 . . Escape Stasis . | . . . . Rewire . | . . . . Trap . | . . . . Miscellaneous . | . . . . Route ------- -11/Scrapyard -10/Materials (discovered 4 exits: *Mat x3 / [*Min]) -9/Materials (discovered 3 exits: [*Mat] / *Min x2) -8/Materials History --------- Turn | Location | Event 40 | -11/Scrapyard | Discovered new exit (range 16) 84 | -11/Scrapyard | Entered Materials 301 | -10/Materials | Build established: Mutant 750 | -10/Materials | Lost 3 parts (1n1u1w) 926 | -10/Materials | Discovered new exit (range 11) 1314 | -10/Materials | Discovered new exit (range 15) 1396 | -10/Materials | Discovered new exit (range 16) 1816 | -10/Materials | Discovered new exit (range 15) 1904 | -10/Materials | Entered another Materials area 1904 | -9/Materials | Evolved 2 slots: Propulsion x1, Weapon x1 1906 | -9/Materials | Discovered new exit (range 15) 1932 | -9/Materials | Identified exit to Mines 2155 | -9/Materials | Lost 5 parts (1p2n1u1w) 2264 | -9/Materials | Discovered exit to Mines (range 15) 2406 | -9/Materials | Discovered new exit (range 5) 2422 | -9/Materials | Core integrity fell below 50% 2487 | -9/Materials | Lost 3 parts (2n1u) 2553 | -9/Materials | System corruption reached 10% 2676 | -9/Materials | Repaired Hammer 2770 | -9/Materials | Core integrity fell below 20% 2771 | -9/Materials | Released all parts (4) 2801 | -9/Materials | Lost 7 parts (1p3n2u1w) 2801 | -9/Materials | Entered another Materials area 2801 | -8/Materials | Evolved 2 slots: Propulsion x1, Utility x1 3065 | -8/Materials | Self-destructed Last Messages --------------- 03015_ Sneak attack on R-06 Scavenger. 03015_ Destroyed Com. Wheel. 03015_ Sneak attack on R-06 Scavenger. 03015_ Katana follow-up attack on R-06 Scavenger. 03015_ Destroyed Lgt. Ion Engine. 03015_ Destroyed Tractor Beam. 03016_ KNN>2F9XCB9DYO3L4 OT 03019_ R-06 Scavenger destroyed. 03031_ G-47 Trooper destroyed. 03036_ G-47 Trooper Particle Gun severed. 03043_ Katana follow-up attack on G-47 Trooper. 03043_ G-47 Trooper destroyed. 03050_ Acquired 50 matter. 03052_ Acquired Aluminum Leg. 03053_ Slug penetrates Nuclear Reactor. 03055_ Acquired 90 matter. 03056_ Slug penetrates Nuclear Reactor. 03059_ R-06 Scavenger collects Particle Gun. 03063_ R-06 Scavenger collects Imp. Heat Sink. Map ----- +----------------------------------------------------+ | ?????????????????????????????????????????????????? | | ?????????????????????????????????????????????????? | | ?????????????????????????????????????????????????? | | ?????????????????????????????????????????????????? | | ?????????????????????????????????????????????????? | | ?????????????????????????????????????????????????? | | ?????????????????????????????????????????????????? | | ?????????????????????????????????????????????????? | | ?????????????????????????????????????????????????? | | ?????????????????????????????????????????????????? | | ?????????????????????????????????????????????????? | | ?????????????????????????????????????????????????? | | ?????????????????????????????????????????????????? | | ?????????????????????????????????????????????????? | | ?????????????????????#########???????????????????? | | ????????????????????# ! ######??????????????? | | ????????????????????# """ # #??????????????? | | ????????????????????# """ * # " #??????????????? | | ????????????????????# """ # T #??????????????? | | ????????????????????# ! # " #??????????????? | | ????????????????????# """ # #??????????????? | | ????????????????????# """ # #??????????????? | | ????????????????????# """ # #??????????????? | | ????????????????????# o ]#*! #??????????????? | | ????????#################/####%%[[#??????????????? | | ????????# @ ###+####?????????????? | | ????????# * ###???????????? | | ????????# [ r ^ ????? | | ????????# r u ??? | | ????????###########+### """ """h """ """ ??? | | ????????# # """ """ """ ""?????? | | ????????# # """ """ """ ""?????? | | ????????# # ????????? | | ????????# # ! ????????? | | ????????# # ! #???????? | | ????????# # ### ##???????? | | ????????############+## ] """ ##+#?? #????????? | | ????????????????#] # """ #????? #????????? | | ????????????????# [ # """ #??????? #????????? | | ????????????????# # ? ?????????#????????? | | ????????????????# ! # ? ??????????????????? | | ????????????????# # ???##??????????????????? | | ????????????????# #??????????????????????????? | | ????????????????# #??????????????????????????? | | ????????????????+ #??????????????????????????? | | ????????????????# [ #??????????????????????????? | | ????????????????# #??????????????????????????? | | ????????????????# #??????????????????????????? | | ????????????????# !%*#??????????????????????????? | | ????????????????###+###??????????????????????????? | +----------------------------------------------------+ Best States ------------- Heat Dissipation 35 Energy Generation 10 Energy Capacity 250 Matter Stores 300 Matter Capacity 300 Sight Range 16 Terrain Scan Density 10 Armor Coverage 225 Evasion (%) 50 Recoil Reduction 3 Offensive Hacking 10 Item Schematics ----------------- Cargo Storage Unit | -10/Materials | Hacked Huge Storage Unit | -10/Materials | Hacked Robot Schematics ------------------ None Fabricated ------------ Nothing Repaired ---------- Hammer | 27% | -9/Materials Studied --------- None Alien Tech Used ----------------- None Achievements -------------- None Challenges ------------ None Game ------ Seed SlugDecoyEngine Manual? 0 Play Time 00:17:58 Cumulative 590.0 hours Start 2026.09.05 @ 00:50:35 End 2026.09.05 @ 01:08:05 Sessions 1 Manual Loads 0 Difficulty Rogue Special Mode None Game No. 491 Rogue 491 Adventurer 0 Explorer 0 Win Type - Total 19 Types 11/0/3/1/0/0/0/2/0/2 Lore% 68 Gallery% 72 Achievement% 69 Wizard Run 0 Options --------- Layout 1 ASCII 0 Keyboard 0 Movement Mouse Keybinds 0 Fullscreen 2 Font 24/Cog Map View 50x35 Zoom Use 75% Tactical HUD 1 Map Filters NONE Filters NONE Steam 1 RUN: 6bc00e13-08e9-4b03-8452-a63f68f257e8